fUST/lending_fUST_20250912
["ID","MTS","AMOUNT","RATE_DAILY","PERIOD"]
[385162801,1757676653404,-405.84019831,0.00017801,2]
[385162803,1757676653415,-1000.82133025,0.00017801,2]
[385162805,1757676653425,-1000.37007379,0.00017801,2]
[385162807,1757676653434,-1000.98199884,0.00017801,2]
[385162809,1757676653443,-480.0,0.00017808,2]
[385162811,1757676653453,-480.0,0.00017808,2]
[385162813,1757676653463,-480.0,0.00017808,2]
[385162815,1757676653472,-539.45,0.00017808,2]
[385162817,1757676653484,-512.57,0.00017808,2]
[385162819,1757676653493,-534.79,0.00017808,2]
[385162821,1757676653502,-559.81,0.00017808,2]
[385162823,1757676653512,-1064.3,0.00017808,2]
[385162825,1757676653521,-515.74,0.00017808,2]
[385162827,1757676653530,-480.0,0.00017808,2]
[385162829,1757676653540,-480.0,0.00017808,2]
[385162831,1757676653549,-766.43,0.00017808,2]
[385162833,1757676653559,-1801.77,0.00017808,2]
[385162835,1757676653568,-500.0,0.0001786,2]
[385162837,1757676653578,-500.0,0.0001786,2]
[385162840,1757676653588,-500.0,0.0001786,2]
[385162842,1757676653597,-500.0,0.0001786,2]
[385162844,1757676653606,-480.0,0.00018082,2]
[385162846,1757676653616,-188.17,0.00018082,2]
[385162848,1757676653626,-480.92,0.00018082,2]
[385162850,1757676653635,-539.45,0.00018082,2]
[385162852,1757676653644,-512.57,0.00018082,2]
[385162854,1757676653653,-534.79,0.00018082,2]
[385162856,1757676653668,-559.81,0.00018082,2]
[385162858,1757676653678,-1064.3,0.00018082,2]
[385162860,1757676653687,-515.74,0.00018082,2]
[385162862,1757676653697,-480.0,0.00018082,2]
[385162864,1757676653706,-480.0,0.00018082,2]
[385162866,1757676653716,-766.43,0.00018082,2]
[385162868,1757676653725,-1801.77,0.00018082,2]
[385162870,1757676653735,-1000.0,0.00018268,2]
[385162872,1757676653744,-1001.32766183,0.00018268,2]
[385162874,1757676653753,-1000.0,0.00018268,2]
[385162876,1757676653762,-1003.81499609,0.00018268,2]
[385162878,1757676653771,-500.0,0.00018271,2]
[385162880,1757676653780,-500.0,0.00018271,2]
[385162882,1757676653790,-500.0,0.00018271,2]
[385162884,1757676653799,-1000.0,0.00018348,2]
[385162886,1757676653808,-1500.0,0.00018349,2]
[385162888,1757676653818,-480.0,0.00018356,2]
[385162890,1757676653828,-539.45,0.00018356,2]
[385162892,1757676653837,-512.57,0.00018356,2]
[385162894,1757676653847,-534.79,0.00018356,2]
[385162896,1757676653856,-559.81,0.00018356,2]
[385162898,1757676653865,-1064.3,0.00018356,2]
[385162900,1757676653875,-515.74,0.00018356,2]
[385162902,1757676653884,-480.0,0.00018356,2]
[385162904,1757676653893,-400.86926543,0.00018356,2]
[385162906,1757676653903,-766.43,0.00018356,2]
[385162908,1757676653913,-1801.77,0.00018356,2]
[385162910,1757676653922,-1000.41157663,0.00018408,2]
[385162912,1757676653932,-1000.0,0.00018408,2]
[385162914,1757676653942,-570.20950792,0.00018408,2]
[385162916,1757676653951,-1000.0,0.00018408,2]
[385162918,1757676653961,-1000.0,0.00018412,2]
[385162920,1757676653971,-480.0,0.0001863,2]
[385162923,1757676653980,-539.45,0.0001863,2]
[385162925,1757676653990,-512.57,0.0001863,2]
[385162927,1757676653999,-534.79,0.0001863,2]
[385162929,1757676654008,-559.81,0.0001863,2]
[385162930,1757676654019,-1064.3,0.0001863,2]
[385162933,1757676654029,-515.74,0.0001863,2]
[385162935,1757676654039,-399.98223118,0.0001863,2]
[385162937,1757676654049,-766.43,0.0001863,2]
[385162939,1757676654058,-1801.77,0.0001863,2]
[385162941,1757676654067,-318.61239594,0.00018816,2]
[385162943,1757676654076,-1500.0,0.00018816,2]
[385162945,1757676654086,-1118.39622009,0.00018819,2]
[385162947,1757676654097,-165.34811247,0.00018819,2]
[385162949,1757676654106,-501.60106191,0.00018897,2]
[385162951,1757676654116,-419.52,0.00018904,2]
[385162953,1757676654125,-539.45,0.00018904,2]
[385162955,1757676654135,-512.57,0.00018904,2]
[385162957,1757676654144,-534.79,0.00018904,2]
[385162959,1757676654153,-559.81,0.00018904,2]
[385162961,1757676654162,-1064.3,0.00018904,2]
[385162963,1757676654172,-515.74,0.00018904,2]
[385162965,1757676654182,-766.43,0.00018904,2]
[385162967,1757676654191,-1801.77,0.00018904,2]
[385162969,1757676654200,-1500.0,0.00018956,2]
[385162971,1757676654209,-539.45,0.00019178,2]
[385162973,1757676654219,-512.57,0.00019178,2]
[385162975,1757676654228,-534.79,0.00019178,2]
[385162977,1757676654238,-559.81,0.00019178,2]
[385162979,1757676654247,-1064.3,0.00019178,2]
[385162981,1757676654256,-515.74,0.00019178,2]
[385162983,1757676654266,-766.43,0.00019178,2]
[385162985,1757676654275,-1801.77,0.00019178,2]
[385162987,1757676654284,-258.50339714,0.00019178,2]
[385162989,1757676654293,-4434.33859438,0.0001935,2]
[385162991,1757676654303,-877.92366858,0.00019364,2]
[385162993,1757676654312,-539.45,0.00019452,2]
[385162995,1757676654321,-512.57,0.00019452,2]
[385162997,1757676654331,-534.79,0.00019452,2]
[385162998,1757676654340,-559.81,0.00019452,2]
[385162999,1757676654348,-1064.3,0.00019452,2]
[385163000,1757676654358,-515.74,0.00019452,2]
[385163001,1757676654367,-766.43,0.00019452,2]
[385163002,1757676654376,-1801.77,0.00019452,2]
[385163003,1757676654385,-182.561956,0.00019635,2]
[385163004,1757676654394,-409.0,0.00019705,2]
[385163005,1757676654408,-539.45,0.00019726,2]
[385163006,1757676654417,-512.57,0.00019726,2]
[385163007,1757676654426,-534.79,0.00019726,2]
[385163008,1757676654435,-559.81,0.00019726,2]
[385163009,1757676654445,-1064.3,0.00019726,2]
[385163010,1757676654455,-515.74,0.00019726,2]
[385163011,1757676654464,-766.43,0.00019726,2]
[385163013,1757676654473,-1801.77,0.00019726,2]
[385163015,1757676654484,-155.0,0.00019943,2]
[385163017,1757676654493,-539.54190952,0.0002,2]
[385163019,1757676654502,-512.65,0.0002,2]
[385163021,1757676654511,-534.85326636,0.0002,2]
[385163023,1757676654521,-559.9,0.0002,2]
[385163025,1757676654530,-1064.51,0.0002,2]
[385163027,1757676654539,-1018.35709241,0.0002,2]
[385163029,1757676654548,-21798.40786483,0.0002,2]
[385163031,1757676654558,-79186.87288165,0.0002,2]
[385163740,1757676685685,407.8672403,0.00027397,120]
[385163741,1757676686616,1000.0,0.00018595,20]
[385163744,1757676844974,500.0,0.00013291,2]
[385163745,1757676853780,500.0,0.00013291,2]
[385163754,1757677007084,607.85,0.00027397,120]
[385163763,1757677230649,-4095.15536107,0.00013598,2]
[385163764,1757677233726,378.58896965,0.00013597,2]
[385163765,1757677233766,163.09755422,0.00013597,2]
[385163766,1757677263018,300.0,0.00013597,2]
[385163787,1757677332874,968.01275399,0.00013597,2]
[385163788,1757677332898,231.98724601,0.00013597,2]
[385163792,1757677346765,530.34906592,0.00013598,2]
[385165036,1757677427572,157.789408,0.00027397,120]
[385165483,1757677440812,1478.1128648,0.00013598,2]
[385167246,1757677503213,1200.0,0.00013597,2]
[385170127,1757677636681,151.0,0.00027397,120]
[385170267,1757677652081,151.0,0.00027397,120]
[385170268,1757677659274,151.0,0.00027397,120]
[385170366,1757677667533,151.0,0.00027397,120]
[385170391,1757677676448,151.0,0.00027397,120]
[385170546,1757677687129,424.27925276,0.00013598,2]
[385170549,1757677690250,151.0,0.00027397,120]
[385170550,1757677700155,151.0,0.00027397,120]
[385170551,1757677704458,151.0,0.000135,2]
[385170552,1757677708777,151.0,0.00027397,120]
[385170553,1757677719067,151.0,0.00027397,120]
[385170554,1757677726376,151.0,0.00027397,120]
[385170555,1757677731264,985.40857654,0.00013598,2]
[385170556,1757677744198,195.4411581,0.00013672,120]
[385170908,1757677832618,-378.58896965,0.00013598,2]
[385170971,1757677838478,-196068.67077351,0.00013598,2]
[385170972,1757677838488,-405.36737293,0.00013673,2]
[385170973,1757677838497,-500.0,0.00013673,2]
[385170974,1757677838634,-191.12119024,0.00013673,2]
[385170975,1757677838645,-639.1747751,0.00013673,2]
[385170976,1757677838654,-213.11346901,0.00013673,2]
[385170977,1757677838664,-500.0,0.00013673,2]
[385170978,1757677838673,-501.91736485,0.00013673,2]
[385170979,1757677838683,-500.0,0.00013673,2]
[385170980,1757677838691,-516.04909598,0.00013673,2]
[385170981,1757677838700,-500.0,0.00013673,2]
[385170982,1757677838709,-596.8589859,0.00013673,2]
[385170983,1757677838718,-500.0,0.00013673,2]
[385170984,1757677838727,-500.0,0.00013673,2]
[385170985,1757677838736,-500.0,0.00013673,2]
[385170986,1757677838745,-500.0,0.00013673,2]
[385170987,1757677838754,-502.19605101,0.00013673,2]
[385170988,1757677838763,-500.0,0.00013673,2]
[385170989,1757677838772,-500.0,0.00013673,2]
[385170990,1757677838781,-500.0,0.00013673,2]
[385170991,1757677838790,-500.0,0.00013673,2]
[385170992,1757677838799,-500.0,0.00013673,2]
[385170993,1757677838809,-500.0,0.00013673,2]
[385170994,1757677838818,-500.0,0.00013673,2]
[385170995,1757677838827,-500.0,0.00013673,2]
[385170996,1757677838837,-19668.61057485,0.00013673,2]
[385170997,1757677838846,-480.0,0.00013698,2]
[385170998,1757677838855,-480.0,0.00013698,2]
[385170999,1757677838865,-480.0,0.00013698,2]
[385171000,1757677838874,-480.0,0.00013698,2]
[385171001,1757677838883,-480.0,0.00013698,2]
[385171002,1757677838892,-228.12395856,0.00013698,2]
[385171003,1757677838902,-480.0,0.00013698,2]
[385171004,1757677838911,-480.0,0.00013698,2]
[385171005,1757677838921,-285.35235389,0.00013698,2]
[385171006,1757677838930,-480.0,0.00013698,2]
[385171007,1757677838940,-480.0,0.00013698,2]
[385171008,1757677838950,-480.0,0.00013698,2]
[385171009,1757677838961,-480.0,0.00013698,2]
[385171010,1757677838970,-480.0,0.00013698,2]
[385171011,1757677838980,-480.0,0.00013698,2]
[385171012,1757677838989,-480.0,0.00013698,2]
[385171013,1757677838999,-500.0,0.00013698,2]
[385171014,1757677839008,-500.0,0.00013698,2]
[385171015,1757677839017,-500.0,0.00013698,2]
[385171016,1757677839026,-500.0,0.00013698,2]
[385171017,1757677839036,-500.0,0.00013698,2]
[385171018,1757677839046,-480.0,0.00013698,2]
[385171019,1757677839057,-480.0,0.00013698,2]
[385171020,1757677839067,-489.63780146,0.00013698,2]
[385171021,1757677839076,-480.0,0.00013698,2]
[385171022,1757677839086,-480.0,0.00013698,2]
[385171023,1757677839096,-480.0,0.00013698,2]
[385171024,1757677839105,-480.0,0.00013698,2]
[385171025,1757677839115,-526.29072467,0.00013698,2]
[385171026,1757677839125,-480.0,0.00013698,2]
[385171027,1757677839134,-480.0,0.00013698,2]
[385171028,1757677839144,-480.0,0.00013698,2]
[385171029,1757677839153,-480.0,0.00013698,2]
[385171030,1757677839163,-480.0,0.00013698,2]
[385171031,1757677839172,-480.0,0.00013698,2]
[385171032,1757677839182,-480.0,0.00013698,2]
[385171033,1757677839191,-480.0,0.00013698,2]
[385171034,1757677839201,-480.0,0.00013698,2]
[385171035,1757677839210,-480.0,0.00013698,2]
[385171036,1757677839220,-480.0,0.00013698,2]
[385171037,1757677839229,-480.0,0.00013698,2]
[385171038,1757677839239,-495.43052127,0.00013698,2]
[385171039,1757677839248,-480.0,0.00013698,2]
[385171040,1757677839258,-480.0,0.00013698,2]
[385171041,1757677839267,-480.0,0.00013698,2]
[385171042,1757677839277,-480.0,0.00013698,2]
[385171043,1757677839286,-480.0,0.00013698,2]
[385171044,1757677839296,-480.0,0.00013698,2]
[385171045,1757677839305,-480.0,0.00013698,2]
[385171046,1757677839314,-480.0,0.00013698,2]
[385171047,1757677839324,-480.0,0.00013698,2]
[385171048,1757677839333,-480.0,0.00013698,2]
[385171049,1757677839343,-480.0,0.00013698,2]
[385171050,1757677839352,-480.0,0.00013698,2]
[385171051,1757677839361,-480.0,0.00013698,2]
[385171052,1757677839371,-480.0,0.00013698,2]
[385171053,1757677839380,-480.0,0.00013698,2]
[385171054,1757677839390,-480.0,0.00013698,2]
[385171055,1757677839400,-480.0,0.00013698,2]
[385171056,1757677839410,-480.0,0.00013698,2]
[385171057,1757677839419,-480.0,0.00013698,2]
[385171058,1757677839428,-480.0,0.00013698,2]
[385171059,1757677839438,-393.28277331,0.00013698,2]
[385171060,1757677839447,-426.29197751,0.00013698,2]
[385171061,1757677839456,-480.0,0.00013698,2]
[385171062,1757677839467,-480.0,0.00013698,2]
[385171063,1757677839476,-487.63608862,0.00013698,2]
[385171064,1757677839485,-480.0,0.00013698,2]
[385171065,1757677839494,-480.0,0.00013698,2]
[385171066,1757677839503,-480.0,0.00013698,2]
[385171067,1757677839512,-480.0,0.00013698,2]
[385171068,1757677839522,-480.0,0.00013698,2]
[385171069,1757677839531,-480.0,0.00013698,2]
[385171070,1757677839540,-480.0,0.00013698,2]
[385171071,1757677839549,-480.0,0.00013698,2]
[385171072,1757677839559,-482.66831065,0.00013698,2]
[385171073,1757677839568,-480.0,0.00013698,2]
[385171074,1757677839578,-480.0,0.00013698,2]
[385171075,1757677839588,-480.0,0.00013698,2]
[385171076,1757677839597,-480.0,0.00013698,2]
[385171077,1757677839606,-480.0,0.00013698,2]
[385171078,1757677839615,-480.0,0.00013698,2]
[385171079,1757677839625,-484.20366298,0.00013698,2]
[385171080,1757677839635,-482.39378484,0.00013698,2]
[385171081,1757677839645,-232.51069455,0.00013698,2]
[385171082,1757677839654,-480.0,0.00013698,2]
[385171083,1757677839664,-480.0,0.00013698,2]
[385171084,1757677839673,-480.0,0.00013698,2]
[385171085,1757677839682,-480.0,0.00013698,2]
[385171086,1757677839691,-480.0,0.00013698,2]
[385171087,1757677839701,-480.0,0.00013698,2]
[385171088,1757677839710,-480.0,0.00013698,2]
[385171089,1757677839719,-480.0,0.00013698,2]
[385171090,1757677839729,-480.0,0.00013698,2]
[385171091,1757677839738,-201.83880755,0.00013698,2]
[385171092,1757677839747,-480.0,0.00013698,2]
[385171093,1757677839757,-480.0,0.00013698,2]
[385171094,1757677839767,-480.0,0.00013698,2]
[385171095,1757677839776,-480.0,0.00013698,2]
[385171096,1757677839786,-480.0,0.00013698,2]
[385171097,1757677839795,-480.0,0.00013698,2]
[385171098,1757677839804,-480.0,0.00013698,2]
[385171099,1757677839813,-480.0,0.00013698,2]
[385171100,1757677839823,-511.96526148,0.00013698,2]
[385171101,1757677839832,-480.0,0.00013698,2]
[385171102,1757677839843,-480.0,0.00013698,2]
[385171103,1757677839854,-480.0,0.00013698,2]
[385171104,1757677839863,-480.0,0.00013698,2]
[385171105,1757677839872,-480.0,0.00013698,2]
[385171106,1757677839882,-480.0,0.00013698,2]
[385171107,1757677839892,-483.32335443,0.00013698,2]
[385171108,1757677839902,-480.0,0.00013698,2]
[385171109,1757677839911,-480.0,0.00013698,2]
[385171110,1757677839921,-480.0,0.00013698,2]
[385171111,1757677839931,-480.0,0.00013698,2]
[385171112,1757677839941,-480.0,0.00013698,2]
[385171113,1757677839950,-480.0,0.00013698,2]
[385171114,1757677839963,-484.24602464,0.00013698,2]
[385171115,1757677839973,-480.0,0.00013698,2]
[385171116,1757677839983,-485.45406545,0.00013698,2]
[385171117,1757677839992,-480.0,0.00013698,2]
[385171118,1757677840002,-480.0,0.00013698,2]
[385171119,1757677840012,-480.0,0.00013698,2]
[385171120,1757677840021,-480.0,0.00013698,2]
[385171121,1757677840030,-480.0,0.00013698,2]
[385171122,1757677840040,-491.68037537,0.00013698,2]
[385171123,1757677840057,-480.0,0.00013698,2]
[385171124,1757677840067,-488.21204967,0.00013698,2]
[385171125,1757677840076,-487.01326893,0.00013698,2]
[385171126,1757677840086,-480.0,0.00013698,2]
[385171127,1757677840097,-480.0,0.00013698,2]
[385171128,1757677840114,-480.0,0.00013698,2]
[385171129,1757677840124,-480.0,0.00013698,2]
[385171130,1757677840134,-480.0,0.00013698,2]
[385171131,1757677840144,-480.0,0.00013698,2]
[385171132,1757677840155,-480.0,0.00013698,2]
[385171133,1757677840165,-240.50131448,0.00013698,2]
[385171134,1757677840174,-480.0,0.00013698,2]
[385171135,1757677840184,-480.0,0.00013698,2]
[385171136,1757677840194,-480.0,0.00013698,2]
[385171137,1757677840203,-480.0,0.00013698,2]
[385171138,1757677840212,-396.11649269,0.00013698,2]
[385171139,1757677840221,-480.0,0.00013698,2]
[385171140,1757677840230,-480.0,0.00013698,2]
[385171141,1757677840240,-480.0,0.00013698,2]
[385171142,1757677840250,-480.0,0.00013698,2]
[385171143,1757677840260,-480.0,0.00013698,2]
[385171144,1757677840269,-480.0,0.00013698,2]
[385171145,1757677840278,-480.0,0.00013698,2]
[385171146,1757677840287,-481.76364217,0.00013698,2]
[385171147,1757677840297,-480.0,0.00013698,2]
[385171148,1757677840306,-480.0,0.00013698,2]
[385171149,1757677840315,-480.0,0.00013698,2]
[385171150,1757677840324,-480.0,0.00013698,2]
[385171151,1757677840334,-480.0,0.00013698,2]
[385171152,1757677840343,-480.0,0.00013698,2]
[385171153,1757677840353,-482.90839945,0.00013698,2]
[385171154,1757677840362,-480.0,0.00013698,2]
[385171155,1757677840371,-480.0,0.00013698,2]
[385171156,1757677840381,-480.0,0.00013698,2]
[385171157,1757677840390,-480.0,0.00013698,2]
[385171158,1757677840398,-482.82757776,0.00013698,2]
[385171159,1757677840408,-480.0,0.00013698,2]
[385171160,1757677840418,-480.0,0.00013698,2]
[385171161,1757677840430,-480.0,0.00013698,2]
[385171162,1757677840439,-480.0,0.00013698,2]
[385171163,1757677840450,-480.0,0.00013698,2]
[385171164,1757677840459,-480.0,0.00013698,2]
[385171165,1757677840468,-480.0,0.00013698,2]
[385171166,1757677840477,-480.0,0.00013698,2]
[385171167,1757677840487,-480.0,0.00013698,2]
[385171168,1757677840497,-480.0,0.00013698,2]
[385171169,1757677840506,-480.0,0.00013698,2]
[385171170,1757677840516,-481.87371809,0.00013698,2]
[385171171,1757677840525,-480.0,0.00013698,2]
[385171172,1757677840535,-480.0,0.00013698,2]
[385171173,1757677840546,-480.0,0.00013698,2]
[385171174,1757677840555,-480.0,0.00013698,2]
[385171175,1757677840564,-480.0,0.00013698,2]
[385171176,1757677840573,-480.0,0.00013698,2]
[385171177,1757677840583,-480.0,0.00013698,2]
[385171178,1757677840592,-480.0,0.00013698,2]
[385171179,1757677840602,-480.0,0.00013698,2]
[385171180,1757677840611,-480.0,0.00013698,2]
[385171181,1757677840620,-480.0,0.00013698,2]
[385171182,1757677840629,-480.0,0.00013698,2]
[385171183,1757677840638,-480.0,0.00013698,2]
[385171184,1757677840648,-480.0,0.00013698,2]
[385171185,1757677840657,-480.0,0.00013698,2]
[385171186,1757677840666,-480.0,0.00013698,2]
[385171187,1757677840675,-480.0,0.00013698,2]
[385171188,1757677840685,-480.0,0.00013698,2]
[385171189,1757677840694,-480.0,0.00013698,2]
[385171190,1757677840703,-480.0,0.00013698,2]
[385171191,1757677840713,-480.0,0.00013698,2]
[385171192,1757677840722,-480.0,0.00013698,2]
[385171193,1757677840731,-480.0,0.00013698,2]
[385171194,1757677840740,-480.0,0.00013698,2]
[385171195,1757677840750,-480.0,0.00013698,2]
[385171196,1757677840759,-482.38843263,0.00013698,2]
[385171197,1757677840768,-480.0,0.00013698,2]
[385171198,1757677840777,-480.0,0.00013698,2]
[385171199,1757677840786,-480.0,0.00013698,2]
[385171200,1757677840795,-480.0,0.00013698,2]
[385171201,1757677840804,-481.46548439,0.00013698,2]
[385171202,1757677840813,-482.56581299,0.00013698,2]
[385171203,1757677840823,-480.0,0.00013698,2]
[385171204,1757677840832,-481.90804806,0.00013698,2]
[385171205,1757677840842,-480.0,0.00013698,2]
[385171206,1757677840851,-480.0,0.00013698,2]
[385171207,1757677840861,-480.0,0.00013698,2]
[385171208,1757677840869,-480.0,0.00013698,2]
[385171209,1757677840879,-480.0,0.00013698,2]
[385171210,1757677840888,-480.0,0.00013698,2]
[385171211,1757677840898,-198.77364617,0.00013698,2]
[385171212,1757677840908,-497.98681952,0.00013698,2]
[385171213,1757677840918,-480.0,0.00013698,2]
[385171214,1757677840927,-480.0,0.00013698,2]
[385171215,1757677840936,-480.0,0.00013698,2]
[385171216,1757677840945,-480.0,0.00013698,2]
[385171217,1757677840955,-480.0,0.00013698,2]
[385171218,1757677840969,-480.0,0.00013698,2]
[385171219,1757677840979,-481.32564248,0.00013698,2]
[385171220,1757677840989,-480.0,0.00013698,2]
[385171221,1757677841001,-480.0,0.00013698,2]
[385171222,1757677841010,-480.0,0.00013698,2]
[385171223,1757677841020,-480.0,0.00013698,2]
[385171224,1757677841030,-487.12324655,0.00013698,2]
[385171225,1757677841040,-481.74525601,0.00013698,2]
[385171226,1757677841051,-480.0,0.00013698,2]
[385171227,1757677841060,-480.0,0.00013698,2]
[385171228,1757677841071,-480.0,0.00013698,2]
[385171229,1757677841081,-480.0,0.00013698,2]
[385171230,1757677841090,-486.48237104,0.00013698,2]
[385171231,1757677841100,-480.0,0.00013698,2]
[385171232,1757677841110,-480.0,0.00013698,2]
[385171233,1757677841120,-480.0,0.00013698,2]
[385171234,1757677841130,-482.04299615,0.00013698,2]
[385171235,1757677841140,-480.0,0.00013698,2]
[385171236,1757677841149,-480.0,0.00013698,2]
[385171237,1757677841159,-480.0,0.00013698,2]
[385171238,1757677841168,-480.0,0.00013698,2]
[385171239,1757677841178,-480.0,0.00013698,2]
[385171240,1757677841187,-480.0,0.00013698,2]
[385171241,1757677841197,-482.39717279,0.00013698,2]
[385171242,1757677841208,-480.0,0.00013698,2]
[385171243,1757677841221,-480.0,0.00013698,2]
[385171244,1757677841230,-480.0,0.00013698,2]
[385171245,1757677841240,-480.0,0.00013698,2]
[385171246,1757677841249,-480.0,0.00013698,2]
[385171247,1757677841258,-480.0,0.00013698,2]
[385171248,1757677841268,-480.0,0.00013698,2]
[385171249,1757677841277,-487.02606013,0.00013698,2]
[385171250,1757677841286,-480.0,0.00013698,2]
[385171251,1757677841296,-480.0,0.00013698,2]
[385171252,1757677841306,-480.0,0.00013698,2]
[385171253,1757677841315,-480.0,0.00013698,2]
[385171254,1757677841325,-507.95735883,0.00013698,2]
[385171255,1757677841334,-480.0,0.00013698,2]
[385171256,1757677841343,-480.0,0.00013698,2]
[385171257,1757677841353,-480.0,0.00013698,2]
[385171258,1757677841362,-480.0,0.00013698,2]
[385171259,1757677841372,-480.0,0.00013698,2]
[385171260,1757677841381,-480.0,0.00013698,2]
[385171261,1757677841391,-480.0,0.00013698,2]
[385171262,1757677841400,-628.78393172,0.00013698,2]
[385171263,1757677841409,-480.0,0.00013698,2]
[385171264,1757677841418,-480.0,0.00013698,2]
[385171265,1757677841428,-480.0,0.00013698,2]
[385171266,1757677841538,-480.0,0.00013698,2]
[385171267,1757677841548,-482.40003297,0.00013698,2]
[385171268,1757677841557,-480.0,0.00013698,2]
[385171269,1757677841567,-480.0,0.00013698,2]
[385171270,1757677841576,-480.0,0.00013698,2]
[385171271,1757677841586,-480.0,0.00013698,2]
[385171272,1757677841595,-480.0,0.00013698,2]
[385171273,1757677841605,-480.0,0.00013698,2]
[385171274,1757677841614,-480.0,0.00013698,2]
[385171275,1757677841624,-480.0,0.00013698,2]
[385171276,1757677841633,-480.0,0.00013698,2]
[385171277,1757677841642,-480.0,0.00013698,2]
[385171278,1757677841652,-480.0,0.00013698,2]
[385171279,1757677841661,-526.20638479,0.00013698,2]
[385171280,1757677841670,-480.0,0.00013698,2]
[385171281,1757677841680,-483.23740924,0.00013698,2]
[385171282,1757677841689,-480.0,0.00013698,2]
[385171283,1757677841698,-482.40454939,0.00013698,2]
[385171284,1757677841707,-480.0,0.00013698,2]
[385171285,1757677841716,-480.0,0.00013698,2]
[385171286,1757677841726,-482.03354135,0.00013698,2]
[385171287,1757677841735,-481.52549031,0.00013698,2]
[385171288,1757677841744,-494.09355426,0.00013698,2]
[385171289,1757677841753,-480.0,0.00013698,2]
[385171290,1757677841762,-480.0,0.00013698,2]
[385171291,1757677841772,-485.55161186,0.00013698,2]
[385171292,1757677841781,-480.0,0.00013698,2]
[385171293,1757677841791,-480.0,0.00013698,2]
[385171294,1757677841800,-480.0,0.00013698,2]
[385171295,1757677841810,-578.58328159,0.00013698,2]
[385171296,1757677841820,-480.0,0.00013698,2]
[385171297,1757677841830,-480.0,0.00013698,2]
[385171298,1757677841839,-480.0,0.00013698,2]
[385171299,1757677841848,-480.0,0.00013698,2]
[385171300,1757677841858,-480.0,0.00013698,2]
[385171301,1757677841867,-480.0,0.00013698,2]
[385171302,1757677841877,-225.21272891,0.00013698,2]
[385171303,1757677841886,-480.0,0.00013698,2]
[385171304,1757677841896,-480.0,0.00013698,2]
[385171305,1757677841906,-480.0,0.00013698,2]
[385171306,1757677841915,-480.0,0.00013698,2]
[385171307,1757677841924,-480.0,0.00013698,2]
[385171308,1757677841934,-480.0,0.00013698,2]
[385171309,1757677841943,-480.0,0.00013698,2]
[385171310,1757677841953,-484.69050205,0.00013698,2]
[385171311,1757677841967,-480.0,0.00013698,2]
[385171312,1757677841976,-480.0,0.00013698,2]
[385171313,1757677841986,-480.0,0.00013698,2]
[385171314,1757677841995,-480.0,0.00013698,2]
[385171315,1757677842005,-480.0,0.00013698,2]
[385171316,1757677842014,-480.0,0.00013698,2]
[385171317,1757677842024,-480.0,0.00013698,2]
[385171318,1757677842033,-486.47111963,0.00013698,2]